Cogmind - Beta 16.1 @@@ ROGUE MODE // 2026.04.10 @ 06:45:05 Player: Elxavo Result: Self-destructed Performance ------------- Evolutions (2) 1000 Regions Visited (3) 600 Robots Destroyed (15) 75 Value Destroyed (257) 257 Prototype IDs (2) 40 Alien Tech Used (0) 0 Bonus (0) 0 TOTAL SCORE: 1972 Bonus ------- None Cogmind --------- Core Integrity 535/550 Matter 269/450 Energy 100/100 System Corruption 0% Temperature Cool (0) Movement Walking (680) Ox8 Location -8/Materials Parts ------- > --- POWER (1) -------- (None) > --- PROPULSION (2) --- Aluminum Leg > --- UTILITY (6) ------ Huge Storage Unit Large Matter Pod Signal Interpreter > --- WEAPON (2) ------- Heavy Assault Rifle Improved Light Cannon > --- INVENTORY (25) --- Light Ion Engine Light Treads Light Treads Medium Armor Plating Light Assault Rifle Light Assault Rifle Light Assault Rifle Autogun Light Cannon Mini Grenade Launcher Mining Laser Peak State ------------ > --- POWER ------------ Ion Engine > --- PROPULSION ------- Aluminum Leg Aluminum Leg > --- UTILITY ---------- Huge Storage Unit Large Matter Pod Signal Interpreter Seismic Detector > --- WEAPON ----------- Heavy Assault Rifle Improved Light Cannon > --- INVENTORY -------- Light Ion Engine Light Treads Light Treads Medium Armor Plating Light Assault Rifle Light Assault Rifle Light Assault Rifle Autogun Light Cannon Mini Grenade Launcher Mining Laser [Rating: 12] Favorites ----------- Power Ion Engine Engine Ion Engine Propulsion Light Treads Treads Light Treads Leg Aluminum Leg Utility Seismic Detector Device Seismic Detector Storage Huge Storage Unit Processor Signal Interpreter Weapon Light Cannon Ballistic Gun Light Assault Rifle Ballistic Cannon Light Cannon Launcher Mini Grenade Launcher Build | -11 -10 -9 -8 ------- Run | Yrd Mat Mat Mat Slots Evolved 4 | . . 2 2 Power . | . . . . Propulsion . | . . . . Utility 4 | . . 2 2 Weapon . | . . . . Parts Attached 17 | 7 3 7 . Power 1 | 1 . . . Engine 1 | 1 . . . Core . | . . . . Reactor . | . . . . Propulsion 4 | 2 . 2 . Treads 2 | 2 . . . Leg 2 | . . 2 . Wheel . | . . . . Hover . | . . . . Flight . | . . . . Utility 6 | 2 2 2 . Device 2 | 1 1 . . Storage 3 | 1 1 1 . Processor 1 | . . 1 . Hackware . | . . . . Protection . | . . . . Artifact . | . . . . Weapon 6 | 2 1 3 . Energy Gun . | . . . . Energy Cannon . | . . . . Ballistic Gun 3 | 2 . 1 . Ballistic Cannon 2 | . 1 1 . Launcher 1 | . . 1 . Special Weapon . | . . . . Impact Weapon . | . . . . Slashing Weapon . | . . . . Piercing Weapon . | . . . . Special Melee Weapon . | . . . . Unidentified Prototypes . | . . . . Parts Lost 6 | . . 3 3 Power 1 | . . . 1 Propulsion 3 | . . 2 1 Utility 1 | . . . 1 Weapon 1 | . . 1 . Highest Loss Streak 3 | . . 2 3 To Critical Strikes . | . . . . Average Backups 9 | 4 8 10 11 Power 1 | 1 1 1 1 Propulsion 1 | 1 2 1 2 Utility . | . 1 . 1 Weapon 5 | 1 3 6 7 Tool/Special . | . . . . Unused Backups 10 | . 2 . 8 Power 2 | . 1 . 1 Propulsion 2 | . . . 2 Utility 2 | . 1 . 1 Weapon 4 | . . . 4 Tool/Special . | . . . . Average Slot Usage (%) 97 | . 100 99 80 Engine 12 | . 14 11 9 Treads 19 | . 28 15 . Leg 4 | . . 6 17 Device 12 | . 14 11 9 Storage 17 | . 14 22 18 Processor 5 | . . 10 9 Ballistic Gun 9 | . 15 3 9 Ballistic Cannon 11 | . 12 10 9 Launcher 3 | . . 7 . Peak Build Rating 12 | 7 7 12 12 Average Rating 8 | 5 7 10 11 On Entrance 6 | . 7 7 12 Avg Prop Armor Cover (%) . | . . . . Naked Turns . | . . . . Heaviest Build 96 | 13 90 96 96 Greatest Support 40 | 40 40 40 20 Greatest Overweight (x) 9 | 2 2 4 9 Average Overweight (x) 1 | . . 2 4 Largest Inventory Capacity 25 | 8 25 25 25 Average Capacity 19 | 7 15 25 25 Most Carried 12 | 7 9 12 11 Average Carried 9 | 4 8 10 11 Final Capacity 25 | 8 25 25 25 Final Carried 11 | 7 9 11 11 Class Distribution -------------------- 100% | Mutant Dominant Class ---------------- Mutant | -10/Materials Mutant | -9/Materials Mutant | -8/Materials Resources | -11 -10 -9 -8 ----------- Run | Yrd Mat Mat Mat Matter Collected 589 | 288 156 144 1 Remotely . | . . . . Salvage Created 218 | 52 121 45 . Parts 32 | 9 18 5 . Haulers Intercepted . | . . . . Recyclers Shooed 1 | . 1 . . Parts Field Recycled . | . . . . Retrieved Matter . | . . . . Parts Self-Destructed . | . . . . Prevented . | . . . . Parts Restored . | . . . . Kills | -11 -10 -9 -8 ------- Run | Yrd Mat Mat Mat Combat Hostiles Destroyed 9 | . 7 2 . Guns 3 | . 3 . . Cannons 6 | . 4 2 . Classes Destroyed 6 | 2 3 1 . Worker 1 | 1 . . . Tunneler 2 | 2 . . . Watcher 3 | . 2 1 . Swarmer 6 | . 6 . . Grunt 1 | . 1 . . Sentry 2 | . . 2 . Best Kill Streak 3 | 2 3 1 . Combat Bots Only 3 | . 3 1 . Max Kills in Single Turn 1 | 1 1 1 . Gunslinging . | . . . . Exploded . | . . . . Melee . | . . . . Uniques/NPCs Destroyed . | . . . . Combat | -11 -10 -9 -8 -------- Run | Yrd Mat Mat Mat Hostile Shots Fired 128 | . 43 75 10 Missed 33 | . 9 21 3 Hits 95 | . 34 54 7 Projectile 95 | . 34 54 7 Critical Strikes 1 | . . . 1 Damage Taken 1152 | . 285 762 105 Core 203 | . 53 135 15 Absorbed by Shields . | . . . . Core Remaining (%) 81 | 100 78 66 . Volleys Fired 65 | 9 26 28 2 Largest 2 | 2 2 2 2 Hottest 56 | 40 50 53 56 Shots Fired 104 | 18 52 30 4 Gun 48 | 18 26 2 2 Cannon 56 | . 26 28 2 Launcher . | . . . . Special . | . . . . Kinetic 104 | 18 52 30 4 Thermal . | . . . . Explosive . | . . . . Electromagnetic . | . . . . Robot Hit Streak 9 | 5 5 9 1 Robot Miss Streak 5 | 3 5 2 5 Penetration Max . | . . . . Secondary Targets . | . . . . Shots Hit Robots 56 | 9 25 21 1 Core Hits 22 | 8 10 4 . Critical Kills . | . . . . Critical Parts Destroyed . | . . . . Critical Strikes . | . . . . Melee Attacks . | . . . . Impact . | . . . . Slashing . | . . . . Piercing . | . . . . Sneak Attacks . | . . . . Combat Hostiles . | . . . . Follow-up Attacks . | . . . . Damage Inflicted 853 | 85 387 359 22 Guns 183 | 85 98 . . Cannons 670 | . 289 359 22 Explosions . | . . . . Melee . | . . . . Ramming . | . . . . Kinetic 853 | 85 387 359 22 Thermal . | . . . . Explosive . | . . . . Electromagnetic . | . . . . Impact . | . . . . Slashing . | . . . . Piercing . | . . . . Highest Corruption . | . . . . Average Corruption . | . . . . Corruption Purged . | . . . . Corruption Blocked . | . . . . Overload Shots . | . . . . Overflow Damage 15 | . 8 7 . Projectiles 15 | . 8 7 . Explosions . | . . . . Melee . | . . . . Knockbacks 10 | . 7 2 1 Impact . | . . . . Kinetic 10 | . 7 2 1 Secondary . | . . . . Self-Inflicted Damage . | . . . . Shots . | . . . . Rammed . | . . . . Targets Rammed . | . . . . Kicked . | . . . . Crushed . | . . . . Highest Temperature 26 | . 26 9 . Average Temperature 8 | . 9 1 . Received Heat Transfer 375 | . 6 324 45 Siege Activations . | . . . . Martial Activations . | . . . . Shielding Activations . | . . . . Robots Disrupted . | . . . . Combat Hostiles . | . . . . Robots Corrupted . | . . . . Combat Hostiles . | . . . . Parts Fried . | . . . . Impact Corruptions . | . . . . Robots Melted . | . . . . Combat Hostiles . | . . . . Parts Melted . | . . . . Heat Transferred . | . . . . Parts Sabotaged . | . . . . Parts Stolen . | . . . . Parts Stripped . | . . . . Power Chain Reactions . | . . . . Alert | -11 -10 -9 -8 ------- Run | Yrd Mat Mat Mat Maximum Alert Level . | . . . . Low Security (%) 100 | 100 100 100 100 Level 1 . | . . . . Level 2 . | . . . . Level 3 . | . . . . Level 4 . | . . . . Level 5 . | . . . . High Security . | . . . . Max Security . | . . . . Peak Influence 136 | 5 136 32 . Initial 3 | . . 3 . Average 16 | . 36 3 . Influence Increases 364 | 15 253 96 . Destroy 0b10 Robot/C 180 | . 140 40 . Destroy 0b10 Robot/NC 30 | 15 10 5 . Destroy Leader 46 | . 24 22 . Successful Hack 46 | . 33 13 . Disable Machine 15 | . . 15 . Destroy Structure 2 | . 1 1 . Partial Spotted 15 | . 15 . . Lose Combat Pursuer 30 | . 30 . . Influence Decreases 364 | 15 245 104 . Entered New Map 5 | . . 5 . Time Decay 339 | 15 245 79 . Lost Part 20 | . . 20 . Squads Dispatched . | . . . . Investigation . | . . . . Extermination . | . . . . Reinforcement . | . . . . Assault . | . . . . Garrison . | . . . . Intercept . | . . . . Searches Triggered . | . . . . Construction Impeded . | . . . . Haulers Reinforced . | . . . . Active Scanning Responses . | . . . . Cargo Convoy Interrupts . | . . . . Stealth | -11 -10 -9 -8 --------- Run | Yrd Mat Mat Mat Distress Signals 3 | . 2 . 1 Communications Jammed . | . . . . Distress Signals . | . . . . Times Spotted 23 | . 14 7 2 Peak Tracking Total 5 | . 5 3 2 Tactical Retreats 1 | . 1 . . Traps | -11 -10 -9 -8 ------- Run | Yrd Mat Mat Mat Traps Triggered . | . . . . Indirectly . | . . . . Trap Hack Attempts . | . . . . Triggered . | . . . . Disarmed . | . . . . Reprogrammed . | . . . . Reused . | . . . . Traps Extracted . | . . . . Installed . | . . . . Triggered . | . . . . Machines | -11 -10 -9 -8 ---------- Run | Yrd Mat Mat Mat Machines Disabled 1 | . . 1 . Max in Single Turn 1 | . . 1 . Machines Repaired . | . . . . Machines Dismantled . | . . . . Machines Sabotaged . | . . . . Overloaded Fab Kills . | . . . . Hacking | -11 -10 -9 -8 --------- Run | Yrd Mat Mat Mat Machines Accessed 11 | . 6 5 . Terminals 9 | . 5 4 . Fabricators . | . . . . Repair Stations . | . . . . Recycling Units 1 | . 1 . . Scanalyzers 1 | . . 1 . Garrison Access . | . . . . Total Hacks 32 | . 14 18 . Successful 16 | . 5 11 . Failed 15 | . 9 6 . Catastrophic 2 | . 1 1 . Database Lockouts 1 | . . 1 . Manual . | . . . . Terminals 19 | . 11 8 . Fabricators . | . . . . Repair Stations . | . . . . Recycling Units 3 | . 3 . . Scanalyzers 10 | . . 10 . Garrison Access . | . . . . Terminal Hacks 8 | . 4 4 . Robot Analysis 2 | . 2 . . Prototype ID Bank 1 | . . 1 . Branch Access Points 1 | . . 1 . Emergency Access Points 1 | . . 1 . Locate Traps 2 | . 1 1 . Registered Components 1 | . 1 . . Fabricator Hacks . | . . . . Repair Station Hacks . | . . . . Recycling Unit Hacks 1 | . 1 . . Retrieve Matter 1 | . 1 . . Scanalyzer 7 | . . 7 . Insert Component 3 | . . 3 . Analyze 3 | . . 3 . Retrieve Study 1 | . . 1 . Garrison Access Hacks . | . . . . Unauthorized Hacks . | . . . . Terminals . | . . . . Fabricators . | . . . . Repair Stations . | . . . . Recycling Units . | . . . . Scanalyzers . | . . . . Garrison Access . | . . . . Data Cores Recovered . | . . . . Used . | . . . . Hacking Detections 11 | . 6 5 . Full Trace Events 1 | . . 1 . Feedback Events . | . . . . Feedback Blocked . | . . . . Robot Schematics Acquired . | . . . . Robots Built . | . . . . Authchips . | . . . . Time . | . . . . Total Robot Build Rating . | . . . . Part Schematics Acquired 3 | . . 3 . Parts Built . | . . . . Authchips . | . . . . Time . | . . . . Total Part Build Rating . | . . . . Part Studies Acquired 1 | . . 1 . Parts Repaired . | . . . . Time . | . . . . Parts Recycled . | . . . . Recycled Matter . | . . . . Retrieved Matter . | . . . . Retrieved Components . | . . . . Parts Scanalyzed 3 | . . 3 . Part Schematics Acquired 3 | . . 3 . Parts Damaged . | . . . . Bothacking | -11 -10 -9 -8 ------------ Run | Yrd Mat Mat Mat Used RIF Installer . | . . . . Robots Hacked . | . . . . Non-combat . | . . . . Combat . | . . . . Robot Hacks Applied . | . . . . Relay Couplers Released . | . . . . Fabnet Peak Effective % . | . . . . Robots Rewired . | . . . . Allies Hacked . | . . . . Hacks Repelled . | . . . . Allies | -11 -10 -9 -8 -------- Run | Yrd Mat Mat Mat Total Allies . | . . . . Largest Group . | . . . . Highest-Rated Group . | . . . . Highest-Rated Ally . | . . . . Total Orders . | . . . . Ally Attacks . | . . . . Total Damage . | . . . . Kills . | . . . . Allies Corrupted . | . . . . Allies Melted . | . . . . Intel | -11 -10 -9 -8 ------- Run | Yrd Mat Mat Mat Active Infowar (turns) 1803 | 23 827 752 201 Seismic 1803 | 23 827 752 201 Robot Analysis Total 2 | . 2 . . Derelict Logs Recovered . | . . . . Drone Launches . | . . . . Drone Recoveries . | . . . . Exploration | -11 -10 -9 -8 ------------- Run | Yrd Mat Mat Mat Turns Passed 1955 | 170 827 752 206 Spaces Moved 651 | 71 341 190 49 Core 6 | 6 . . . Treads 553 | 65 341 147 . Legs 92 | . . 43 49 Wheels . | . . . . Hover . | . . . . Flight . | . . . . Fastest Speed 50 | 50 160 320 400 Average Speed 256 | 154 210 338 407 Slowest Speed 750 | 160 320 400 750 Overloaded Moves . | . . . . Propulsion Burnouts . | . . . . Robots Hopped . | . . . . Potential Cave-ins . | . . . . Cave-ins Triggered . | . . . . Exploration Rate (%) 26 | 5 73 21 7 Regions Visited 3 Branch Regions . Pre-discovered Areas . | . . . . Known Exits Taken 1 | . . 1 . Unknown Exits Taken 2 | 1 1 . . Scrap Searched . | . . . . Spaces Dug . | . . . . Terrain Destroyed . | . . . . Melee . | . . . . Projectile . | . . . . AOE . | . . . . Terrain Rammed . | . . . . Walls Destroyed . | . . . . Machines Disabled . | . . . . Actions | -11 -10 -9 -8 --------- Run | Yrd Mat Mat Mat Total 844 | 114 408 271 51 Wait 91 | 20 31 40 . Move 648 | 70 340 189 49 Hop . | . . . . Pick Up 19 | 8 4 7 . Fast Attach 6 | 6 . . . Attach 6 | 1 . 5 . Detach . | . . . . Swap 5 | . 3 2 . Drop 4 | . 4 . . Fire 65 | 9 26 28 2 Melee . | . . . . Ram . | . . . . Kick . | . . . . Crush . | . . . . Escape Stasis . | . . . . Rewire . | . . . . Trap . | . . . . Miscellaneous . | . . . . Route ------- -11/Scrapyard -10/Materials (discovered 4 exits: *Mat / [*Min x2] / [*Sub]) -9/Materials (discovered 2 exits: *Mat / *Min) -8/Materials History --------- Turn | Location | Event 6 | -11/Scrapyard | Discovered new exit (range 15) 171 | -11/Scrapyard | Entered Materials 302 | -10/Materials | Build established: Mutant 475 | -10/Materials | Discovered new exit (range 11) 530 | -10/Materials | Discovered new exit (range 16) 796 | -10/Materials | Discovered new exit (range 16) 886 | -10/Materials | Discovered new exit (range 9) 998 | -10/Materials | Entered another Materials area 998 | -9/Materials | Evolved 2 slots: Utility x2 1180 | -9/Materials | Discovered new exit (range 7) 1306 | -9/Materials | Central database locked down 1406 | -9/Materials | Identified exit to Mines 1698 | -9/Materials | Discovered new exit (range 13) 1746 | -9/Materials | Identified exit to Materials 1750 | -9/Materials | Entered another Materials area 1750 | -8/Materials | Evolved 2 slots: Utility x2 1956 | -8/Materials | Self-destructed Last Messages --------------- 01576_ Acquired 7 matter. 01588_ Acquired 68 matter. 01628_ R-06 Scavenger collects Heat Sink. 01646_ Acquired 1 matter. 01698_ EXIT=FOUND 01713_ T-07 Excavator suffers critical hit (Burn). 01713_ T-07 Excavator destroyed. 01719_ Lgt. Cannon destroyed. 01739_ R-06 Scavenger collects Lgt. Ion Engine. 01746_ EXIT=IDENTIFIED: MATERIALS PARAMETERS=UTILITY+2 LOCATION=MATERIALS GOAL=ESCAPE 01892_ K-01 Serf collects debris. 01905_ W-25 Informer knocked back. 01932_ Acquired 1 matter. 01948_ Aluminum Leg destroyed. 01951_ Seismic Detector destroyed. 01951_ Critical hit (Burn: +37). 01951_ Ion Engine destroyed. Map ----- +----------------------------------------------------+ | ?????????????????????????????????????????????????? | | ?????????????????????????????????????????????????? | | ?????????????????????????????????????????????????? | | ?????????????????????????????????????????????????? | | ?????????????????????????????????????????????????? | | ?????????????????????????????????????????????????? | | ?????????????????????????????????????????????????? | | ?????????????????????????????????????????????????? | | ?????????????????????????????????????????????????? | | ?????????????????????????????????????????????????? | | ??????????????????????? ???????????????????????? | | ?????????????????????? Y ???????????????????????? | | ?????????????????????? ???????????????????????? | | ?????????????????????? ??????????????????????? | | ??????????????????????# #??????????????????????? | | ??????????????????????# #??????????????????????? | | ??????????????????????# #??????????????????????? | | ??????????????????????# #??? ??????????????????? | | ??????????????????????# #?? ""?###########?????? | | ??????????????????????# #?? ""?# #?????? | | ??????????????????????# #? "??# #?????? | | ??????????????????????# #? ???# """ #?????? | | ????????????#?????????# # ????#""""" #?????? | | ????????????# ????????# # ?????#""""" [#?????? | | ????????????# ???????# +??????#""""" #?????? | | ????????????# ?????# @#??????# """ #?????? | | ????????????# ????# #??????# #?????? | | ????????????# #### ############+########### | | ????????????# w | | ?????? | | ??????????###### | | ???????????????################################### | | ?????????????????????????????????????????????????? | | ?????????????????????????????????????????????????? | | ?????????????????????????????????????????????????? | | | | | | | | | | | | | | | | | | | | | | | | | | | | | | | +----------------------------------------------------+ Best States ------------- Heat Dissipation 31 Energy Generation 10 Energy Capacity 250 Matter Stores 300 Matter Capacity 450 Sight Range 16 Terrain Scan Density 10 Evasion (%) 40 Recoil Reduction 2 Item Schematics ----------------- Med. Armor Plating | -9/Materials | Scanalyzed Autogun | -9/Materials | Scanalyzed Imp. Light Cannon | -9/Materials | Scanalyzed Robot Schematics ------------------ None Fabricated ------------ Nothing Repaired ---------- Nothing Studied --------- Mni. Grenade Launcher | -9/Materials | Hacked Alien Tech Used ----------------- None Achievements -------------- None Challenges ------------ None Game ------ Seed NodeTerrorChaincannon Manual? 0 Play Time 00:17:10 Cumulative 65.9 hours Start 2026.04.10 @ 06:28:14 End 2026.04.10 @ 06:45:05 Sessions 1 Manual Loads 0 Difficulty Rogue Special Mode None Game No. 85 Rogue 85 Adventurer 0 Explorer 0 Win Type - Total 0 Types 0/0/0/0/0/0/0/0/0/0 Lore% 30 Gallery% 23 Achievement% 17 Wizard Run 0 Options --------- Layout 0 ASCII 0 Keyboard 0 Movement Mouse Keybinds 0 Fullscreen 1 Font 18/SmallcapsGlow Map View 76x50 Zoom Use 0% Tactical HUD 1 Map Filters NONE Filters LOW_CONTRAST(13,24,33) Steam 1 RUN: 0435216d-3be3-4fa2-97cd-df855a103fcc